bitfinex-derivatives/quotes_SOLF0:USTF0_20250923
["timestamp","ask_amount","ask_price","bid_price","bid_amount"]
[1758652312133,7.06,217.01,216.93,7.22]
[1758652312431,7.06,217.05,216.96,4.1464]
[1758652312637,7.06,217.05,216.94,7.22]
[1758652312838,7.06,217.13,216.97,7.22]
[1758652313136,7.06,217.1,216.97,7.22]
[1758652315233,64.4679,217.08,216.97,7.22]
[1758652315438,7.22,217.06,216.92,7.7]
[1758652316630,4.1452,217.03,216.93,4.147]
[1758652317037,7.22,217.06,216.92,7.7]
[1758652317644,7.22,217.03,216.92,11.8472]
[1758652317838,7.22,217.03,216.92,7.7]
[1758652318038,4.1462,216.98,216.88,4.148]
[1758652318237,11.3662,216.98,216.88,4.148]
[1758652319044,11.3662,216.98,216.89,7.7]
[1758652320945,11.3662,216.98,216.89,11.8477]
[1758652321546,1.15267697,216.97,216.89,7.7]
[1758652321744,7.22,216.98,216.89,7.7]
[1758652322645,7.22,216.98,216.93,11.8471]
[1758652322846,7.22,216.98,216.93,7.7]
[1758652324049,7.22,216.99,216.93,7.7]
[1758652324253,7.22,216.99,216.94,4.1469]
[1758652324448,7.22,216.99,216.95,7.7]
[1758652324849,7.22,216.99,216.91,7.7]
[1758652325148,7.22,216.97,216.88,1.64978123]
[1758652325446,7.22,216.97,216.87,7.7]
[1758652325447,7.22,216.95,216.87,7.7]
[1758652325645,7.22,216.93,216.83,1.64978123]
[1758652325846,1.15254743,216.92,216.83,1.64978123]
[1758652326344,100.60978123,216.96,216.86,1.64978123]
[1758652326541,1.15283102,216.95,216.85,7.7]
[1758652326745,1.15283102,216.94,216.87,64.5293]
[1758652326947,7.22,217.01,216.89,7.7]
[1758652327148,1.1525433,217.0,216.89,7.7]
[1758652327346,24.62,217.04,216.95,7.7]
[1758652327347,1.1525433,216.99,216.95,7.7]
[1758652327546,7.22,217.03,216.95,7.7]
[1758652327744,1.15252605,217.02,216.89,7.7]
[1758652327944,8.37252605,217.01,216.89,7.7]
[1758652328152,7.22,217.01,216.89,7.7]
[1758652328545,4.1458,217.0,216.92,4.1473]
[1758652328944,4.1458,217.0,216.9,4.1477]
[1758652329252,4.1461,216.99,216.9,4.1477]
[1758652329446,4.1461,216.99,216.89,7.7]
[1758652329647,7.22,216.98,216.89,7.7]
[1758652330147,4.1468,216.95,216.89,7.7]
[1758652330348,7.22,216.94,216.84,7.7]
[1758652330748,4.1473,216.93,216.84,11.8487]
[1758652331252,7.22,216.94,216.85,4.1485]
[1758652331453,7.22,216.94,216.84,7.7]
[1758652332248,11.367,216.94,216.85,4.1486]
[1758652333047,11.367,216.94,216.87,4.1483]
[1758652333447,7.05,217.03,216.88,7.69]
[1758652333649,1.15268984,217.02,216.9,7.69]
[1758652333852,4.1462,216.99,216.9,7.69]
[1758652334053,7.05,217.01,216.9,7.69]
[1758652334254,1.1525876,217.0,216.9,7.69]
[1758652334451,1.1525876,216.99,216.9,7.69]
[1758652334649,11.1957,217.01,216.9,7.69]
[1758652334955,1.1525876,217.0,216.9,7.69]
[1758652335153,7.05,217.01,216.9,7.69]
[1758652335348,1.15253865,217.0,216.9,7.69]
[1758652335544,7.05,217.01,216.9,7.69]
[1758652335750,1.15253865,217.0,216.95,11.8366]
[1758652336053,4.1452,217.04,216.95,7.69]
[1758652336359,1.15249015,217.03,216.97,4.1462]
[1758652336655,11.1947,217.06,216.97,4.1462]
[1758652336856,1.15238914,217.05,216.97,4.1462]
[1758652337157,1.15238914,217.04,216.97,4.1462]
[1758652337358,1.15238914,217.03,216.97,4.1462]
[1758652337559,11.1947,217.06,216.97,4.1462]
[1758652337761,1.15238914,217.05,216.98,4.1461]
[1758652337954,1.15238914,217.04,216.95,72.1958]
[1758652338148,7.05,217.06,216.97,4.1464]
[1758652338354,1.15228496,217.05,216.97,4.1464]
[1758652338658,7.05,217.06,216.97,4.1464]
[1758652338860,1.1523092,217.05,216.97,4.1464]
[1758652339156,7.05,217.06,216.97,7.69]
[1758652339664,7.05,217.06,217.01,4.1456]
[1758652339855,7.05,217.06,216.98,7.69]
[1758652340050,83.86,217.07,216.98,7.69]
[1758652340252,83.86,217.07,216.96,7.69]
[1758652341156,83.86,217.07,216.98,4.1461]
[1758652341353,83.86,217.07,216.96,7.69]
[1758652341962,83.86,217.07,216.97,64.5]
[1758652342353,83.86,217.07,216.96,7.69]
[1758652343357,83.86,217.07,216.99,4.146]
[1758652344265,1.15222075,217.06,216.99,4.146]
[1758652344465,83.86,217.07,216.99,4.146]
[1758652344669,1.15222075,217.06,216.99,4.146]
[1758652344961,83.86,217.07,216.99,4.146]
[1758652345167,1.15222075,217.06,216.99,4.146]
[1758652345367,7.45,217.05,216.96,11.8365]
[1758652345664,1.15224627,217.04,216.96,11.8365]
[1758652346267,83.86,217.07,216.96,7.69]
[1758652346568,1.15228366,217.06,216.96,10.26623005]
[1758652346760,1.15228366,217.05,216.96,10.26623005]
[1758652346961,83.86,217.07,216.96,10.26623005]
[1758652347163,1.15228366,217.06,216.97,71.6003]
[1758652347467,7.45,217.06,216.97,7.1]
[1758652348764,7.45,217.06,216.98,4.1461]
[1758652348962,1.15222925,217.05,216.98,4.1461]
[1758652349158,7.45,217.06,216.98,4.1461]
[1758652349364,1.15222925,217.05,216.98,4.1461]
[1758652349673,7.45,217.06,216.98,4.1461]
[1758652350469,1.15222075,217.05,216.98,4.1461]
[1758652350668,1.15222075,217.04,216.98,4.1461]
[1758652350870,7.45,217.06,216.98,4.1461]
[1758652351066,1.15226071,217.05,216.98,4.1461]
[1758652351271,1.15226071,217.04,216.98,4.1461]
[1758652351470,7.45,217.06,216.98,4.1461]
[1758652351666,1.15226071,217.05,216.98,4.1461]
[1758652351975,7.45,217.03,216.92,9.67623005]
[1758652352266,1.1523636,217.02,216.92,9.67623005]
[1758652352472,7.45,217.03,216.92,9.67623005]
[1758652352671,7.45,217.03,216.96,4.1465]
[1758652352865,83.86,217.07,216.95,7.1]
[1758652353066,1.15233228,217.06,216.97,7.1]
[1758652353267,1.15233228,217.05,216.97,7.1]
[1758652353469,1.15233228,217.04,216.97,7.1]
[1758652353668,1.15233228,217.03,216.97,7.1]
[1758652353873,7.45,217.07,216.97,7.1]
[1758652354072,1.15230068,217.06,216.97,7.1]
[1758652354269,1.15230068,217.05,216.97,7.1]
[1758652354465,1.15230068,217.04,216.97,7.1]
[1758652354670,7.45,217.07,216.97,7.1]
[1758652355173,7.45,217.07,217.01,4.1455]
[1758652358777,7.45,217.13,217.04,4.1449]
[1758652359169,11.5935,217.13,217.04,4.1449]
[1758652359366,7.45,217.13,217.04,4.1449]
[1758652360877,4.1439,217.11,217.02,7.1]
[1758652361079,7.45,217.1,217.02,7.1]
[1758652362370,4.1434,217.13,217.06,4.1446]
[1758652363472,7.45,217.14,217.05,7.1]
[1758652364275,7.45,217.18,217.06,7.1]
[1758652364477,7.45,217.18,217.08,7.1]
[1758652364672,11.5926,217.18,217.08,7.1]
[1758652365180,7.45,217.18,217.08,7.1]
[1758652365377,11.5929,217.16,217.08,7.1]
[1758652365575,7.45,217.16,217.08,7.1]
[1758652366374,4.1435,217.13,217.08,7.1]
[1758652366676,7.45,217.14,217.03,7.1]
[1758652366881,7.45,217.12,217.03,7.1]
[1758652367272,7.45,217.08,216.98,7.1]
[1758652367674,11.5943,217.08,216.98,7.1]
[1758652368081,7.45,217.08,216.98,7.1]
[1758652368375,7.45,217.08,217.0,4.1457]
[1758652368582,7.45,217.08,217.01,7.1]
[1758652368783,7.45,217.08,217.01,11.2455]
[1758652372874,7.45,217.08,217.01,7.1]
[1758652375986,7.45,217.08,216.98,4.1461]
[1758652376381,11.5943,217.08,216.99,11.8359]
[1758652376581,118.01623005,217.12,216.99,11.8359]
[1758652376582,7.09,217.11,216.99,7.69]
[1758652377891,7.09,217.11,217.03,7.69]
[1758652378190,115.44,217.12,217.03,7.69]
[1758652378495,4.1433,217.14,217.06,4.1447]
[1758652378695,7.09,217.15,217.06,4.1447]
[1758652379096,11.2331,217.15,217.07,4.1444]
[1758652379298,7.09,217.15,217.06,7.69]
[1758652379890,7.09,217.15,217.07,4.1444]
[1758652380086,7.09,217.15,217.06,7.69]
[1758652380698,11.2331,217.15,217.06,7.69]
[1758652381192,7.09,217.15,217.06,7.69]
[1758652381787,7.09,217.23,217.11,7.69]
[1758652382593,7.09,217.23,217.14,4.143]
[1758652382996,7.09,217.23,217.14,7.69]
[1758652383999,11.2316,217.23,217.14,11.833]
[1758652384193,7.09,217.23,217.14,7.69]
[1758652384594,64.4213,217.24,217.1,11.56811645]
[1758652384794,64.433,217.2,217.1,7.69]
[1758652385094,64.4381,217.18,217.05,7.69]
[1758652385300,7.09,217.18,217.05,7.69]
[1758652385604,7.09,217.18,217.06,3.87811645]
[1758652385904,7.09,217.18,217.07,7.69]
[1758652386605,7.09,217.18,217.09,4.1439]
[1758652386901,7.09,217.18,217.07,7.69]
[1758652386902,7.09,217.18,217.07,64.4696]
[1758652387102,7.09,217.18,217.08,7.69]
[1758652387492,7.09,217.18,217.11,4.1437]
[1758652387695,7.09,217.18,217.08,7.69]
[1758652388505,7.09,217.18,217.11,4.1435]
[1758652389093,7.09,217.18,217.08,11.8341]
[1758652389693,11.2326,217.18,217.09,4.1439]
[1758652389899,7.09,217.18,217.09,4.1439]
[1758652390098,7.09,217.18,217.08,7.69]
[1758652390602,7.09,217.18,217.08,9.3374094]
[1758652390798,4.143,217.16,217.08,9.3374094]
[1758652391002,7.09,217.15,217.08,9.3374094]
[1758652391802,13.4597094,217.19,217.08,9.3374094]
[1758652392501,11.8123,217.19,217.11,1.6474094]
[1758652392904,7.67,217.19,217.11,9.0474094]
[1758652393508,7.67,217.19,217.13,4.1432]
[1758652394704,7.67,217.19,217.07,68.34761645]
[1758652394705,7.67,217.23,217.14,1.6474094]
[1758652395200,9.3174094,217.23,217.12,7.4]
[1758652395399,1.6474094,217.21,217.12,7.4]
[1758652395604,7.67,217.2,217.12,7.4]
[1758652395909,7.67,217.2,217.14,4.143]
[1758652396109,1.6474094,217.24,217.11,1.6474094]
[1758652396110,7.67,217.24,217.17,1.6474094]
[1758652396503,7.67,217.24,217.15,7.4]
[1758652396704,11.8114,217.24,217.15,11.5428]
[1758652396899,11.8114,217.24,217.15,7.4]
[1758652397108,7.67,217.24,217.15,7.4]
[1758652397306,7.67,217.24,217.17,4.1425]
[1758652397806,4.1405,217.28,217.2,5.7892094]
[1758652398210,4.1405,217.28,217.2,4.1418]
[1758652398410,4.1405,217.28,217.2,5.7892094]
[1758652398608,4.1408,217.27,217.2,1.6474094]
[1758652398816,7.67,217.26,217.2,1.6474094]
[1758652399008,7.67,217.26,217.17,5.7898094]
[1758652399907,7.67,217.26,217.18,1.6474094]
[1758652400616,7.67,217.23,217.16,9.0474094]
[1758652401816,64.409,217.28,217.13,5.7907094]
[1758652401817,7.67,217.2,217.13,5.7907094]
[1758652402012,7.67,217.2,217.08,7.4]
[1758652402219,7.67,217.2,217.11,7.4]
[1758652402517,4.1424,217.19,217.11,11.5436]
[1758652402713,7.67,217.2,217.11,11.5436]
[1758652402714,7.67,217.2,217.12,1.6474094]
[1758652403118,11.6728,217.17,217.11,7.4]
[1758652403334,7.53,217.17,217.1,1.6474094]
[1758652403616,7.53,217.21,217.09,7.07]
[1758652403824,7.53,217.21,217.12,1.6474094]
[1758652404315,7.53,217.21,217.13,7.07]
[1758652404712,179.8118,217.27,217.13,7.07]
[1758652404713,7.53,217.26,217.15,1.6474094]
[1758652405419,7.53,217.23,217.15,5.7903094]
[1758652406018,7.53,217.23,217.15,1.6474094]
[1758652406213,7.53,217.23,217.12,5.7908094]
[1758652407020,7.53,217.23,217.13,4.1432]
[1758652407221,7.53,217.23,217.12,8.7174094]
[1758652407617,11.6715,217.23,217.12,8.7174094]
[1758652407921,11.6715,217.23,217.15,1.6474094]
[1758652407922,7.53,217.23,217.15,1.6474094]
[1758652408821,11.6715,217.23,217.12,7.07]
[1758652409025,11.6715,217.23,217.14,1.6474094]
[1758652410020,11.6715,217.23,217.14,5.7905094]
[1758652412527,7.53,217.23,217.17,1.6474094]
[1758652413024,7.53,217.23,217.17,4.1424]
[1758652413321,7.53,217.23,217.15,1.6474094]
[1758652413722,7.53,217.23,217.16,4.1426]
[1758652414621,7.53,217.23,217.15,1.6474094]
[1758652414826,7.53,217.21,217.12,8.7174094]
[1758652415419,7.53,217.21,217.15,1.6474094]
[1758652415820,7.53,217.21,217.16,11.2126]
[1758652416019,7.53,217.21,217.16,7.07]
[1758652416314,7.53,217.25,217.15,8.7174094]
[1758652416920,11.6712,217.25,217.15,8.7174094]
[1758652417626,11.6712,217.25,217.16,1.6474094]
[1758652418121,7.53,217.23,217.16,1.6474094]
[1758652419028,11.6716,217.23,217.16,5.7901094]
[1758652419324,7.53,217.23,217.16,5.7901094]
[1758652419730,9.1774094,217.23,217.1,7.07]
[1758652420029,1.6474094,217.2,217.1,8.7174094]
[1758652420222,7.53,217.19,217.1,8.7174094]
[1758652421029,7.53,217.19,217.11,4.1437]
[1758652421827,7.53,217.19,217.12,4.1434]
[1758652422931,7.53,217.19,217.1,16.70761069]
[1758652423318,4.1427,217.17,217.1,16.70761069]
[1758652423523,7.53,217.19,217.1,7.07]
[1758652423718,1.6474094,217.17,217.09,3.84630129]
[1758652423923,7.53,217.12,217.07,3.84630129]
[1758652424226,11.6735,217.13,217.07,3.84630129]
[1758652424828,7.53,217.13,217.07,3.84630129]
[1758652425225,7.53,217.13,217.08,4.1442]
[1758652425620,7.53,217.15,217.08,4.1442]
[1758652426228,7.53,217.15,217.07,5.49371069]
[1758652426433,1.6474094,217.21,217.1,1.6474094]
[1758652426630,7.53,217.2,217.11,7.07]
[1758652426935,11.6721,217.2,217.13,4.1432]
[1758652427126,7.53,217.2,217.11,10.91630129]
[1758652427528,7.53,217.2,217.14,4.143]
[1758652429332,7.53,217.2,217.11,10.91630129]
[1758652429528,7.53,217.2,217.12,4.1435]
[1758652429722,7.53,217.18,217.1,3.84630129]
[1758652430034,7.53,217.16,217.09,3.84630129]
[1758652430623,7.53,217.16,217.1,4.1437]
[1758652431635,7.53,217.16,217.1,7.99000129]
[1758652431931,145.4469,217.22,217.1,12.56371069]
[1758652431932,7.53,217.2,217.1,12.56371069]
[1758652432323,11.6721,217.2,217.13,4.1432]
[1758652433536,7.53,217.2,217.14,4.143]
[1758652433743,7.53,217.2,217.13,1.6474094]
[1758652434429,7.53,217.2,217.13,5.7907094]
[1758652435136,7.53,217.2,217.11,3.87301401]
[1758652435137,7.53,217.2,217.11,8.01671401]
[1758652435933,7.52,217.16,217.11,4.1437]
[1758652436137,11.6627,217.17,217.11,4.1437]
[1758652436628,4.1429,217.16,217.1,3.87301401]
[1758652436834,7.52,217.17,217.08,4.1441]
[1758652437837,4.1433,217.14,217.08,4.1441]
[1758652438034,7.52,217.17,217.09,4.144]
[1758652438339,7.52,217.17,217.09,1.6474094]
[1758652438837,7.52,217.17,217.1,4.1438]
[1758652439240,1.6474094,217.2,217.12,4.1435]
[1758652439241,11.6625,217.18,217.12,4.1435]
[1758652439432,7.52,217.18,217.09,1.6474094]
[1758652439837,7.52,217.18,217.1,4.1439]
[1758652440134,7.52,217.18,217.09,1.6474094]
[1758652440435,7.52,217.16,217.07,7.61]
[1758652440639,7.52,217.12,217.06,1.6474094]
[1758652441638,7.52,217.12,217.04,3.87301401]
[1758652441842,7.52,217.12,217.03,7.61]
[1758652441843,1.6474094,217.14,217.03,11.48301401]
[1758652442137,7.52,217.13,217.03,7.61]
[1758652443240,7.52,217.13,217.04,1.6474094]
[1758652443631,7.52,217.13,217.06,4.1446]
[1758652443838,7.52,217.13,217.04,1.6474094]
[1758652445848,4.1437,217.12,217.05,4.1449]
[1758652446051,7.52,217.11,217.05,4.1449]
[1758652447449,7.52,217.11,217.03,7.61]
[1758652447635,7.52,217.11,217.05,1.6474094]
[1758652447840,7.52,217.15,217.06,7.61]
[1758652448148,1.6474094,217.13,217.03,3.87301401]
[1758652448339,7.52,217.12,217.03,7.61]
[1758652448745,4.144,217.1,217.04,4.145]
[1758652449540,11.6636,217.12,217.04,4.145]
[1758652449936,7.52,217.12,217.04,4.145]
[1758652450744,7.52,217.09,217.04,4.145]
[1758652450939,4.144,217.1,217.04,4.145]
[1758652451146,7.52,217.09,217.04,4.145]
[1758652451447,11.194,217.1,217.04,4.145]
[1758652452346,7.05,217.1,217.02,5.7928094]
[1758652452544,7.05,217.1,216.99,359.06301401]
[1758652453644,7.05,217.1,217.01,64.4881]
[1758652453852,7.05,217.1,217.02,7.05]
[1758652454449,7.05,217.1,217.03,7.05]
[1758652455250,7.05,217.1,217.06,11.1945]
[1758652456254,7.05,217.16,217.05,7.05]
[1758652456845,7.05,217.14,217.08,4.1442]
[1758652457755,4.1435,217.13,217.06,4.1446]
[1758652457954,7.05,217.12,217.06,4.1446]
[1758652458548,4.1431,217.15,217.07,4.1444]
[1758652458745,2.57581535,217.18,217.07,4.1444]
[1758652458746,7.05,217.14,217.07,4.1444]
[1758652459651,7.05,217.14,217.05,11.1948]
[1758652459847,64.4414,217.17,217.05,11.1948]
[1758652460446,7.05,217.16,217.05,11.1948]
[1758652460653,74.07641535,217.14,217.01,3.87301401]
[1758652460853,74.07641535,217.14,217.0,7.05]
[1758652461352,11.1944,217.08,217.01,4.1456]
[1758652462154,11.1944,217.08,217.02,4.1453]
[1758652464762,7.05,217.08,217.03,4.1452]
[1758652464970,4.1439,217.1,217.04,7.58]
[1758652465362,7.46,217.08,217.02,4.1454]
[1758652467064,7.46,217.08,217.0,11.7258]
[1758652467269,64.459,217.11,217.0,11.7258]
[1758652467468,4.145,217.05,216.98,4.1462]
[1758652467768,11.605,217.05,216.98,4.1462]
[1758652468971,4.1452,217.04,216.98,4.1462]
[1758652469367,81.09559466,217.1,216.92,2.57581535]
[1758652469368,64.474,217.06,216.95,3.87301401]
[1758652469571,7.46,217.05,216.94,3.87301401]
[1758652470171,7.46,217.06,216.95,7.58]
[1758652470570,4.1454,217.03,216.95,7.58]
[1758652470770,7.46,217.02,216.95,7.58]
[1758652471066,7.46,217.02,216.94,8.01991401]
[1758652471371,7.46,217.02,216.94,4.1469]
[1758652471572,7.46,217.02,216.95,4.1467]
[1758652472370,4.1458,217.01,216.93,4.1471]
[1758652473674,4.1458,217.01,216.94,4.1468]
[1758652475369,7.46,217.02,216.96,4.1466]
[1758652475678,7.46,217.02,216.95,7.58]
[1758652476069,7.46,217.02,216.95,11.7267]
[1758652476471,7.46,217.02,216.95,7.58]
[1758652477276,11.6056,217.02,216.95,7.58]
[1758652477774,11.6056,217.02,216.92,6.44882936]
[1758652477775,4.146,217.0,216.92,8.02041401]
[1758652477974,11.606,217.0,216.92,11.7274]
[1758652478176,7.46,217.08,216.92,7.58]
[1758652478479,7.46,217.08,216.96,4.1465]
[1758652479573,11.6052,217.04,216.97,4.1463]
[1758652480984,4.1454,217.03,216.97,4.1463]
[1758652481178,4.1454,217.03,216.95,11.7268]
[1758652482079,4.1456,217.02,216.95,11.7268]
[1758652482590,4.1458,217.01,216.95,11.7268]
[1758652483280,4.1458,217.01,216.95,7.58]
[1758652483886,7.46,216.99,216.95,7.58]
[1758652484087,4.146,217.0,216.95,7.58]
[1758652484279,7.46,216.99,216.95,7.58]
[1758652484784,7.46,216.99,216.93,2.57581535]
[1758652485081,4.1456,217.02,216.94,7.58]
[1758652485787,7.46,217.08,216.94,7.58]
[1758652485983,7.46,217.08,216.98,7.58]
[1758652486786,11.6044,217.08,216.98,7.58]
[1758652487886,11.6044,217.08,217.02,4.1454]
[1758652490088,11.6044,217.08,217.01,7.58]
[1758652490489,7.46,217.08,217.01,7.58]
[1758652491592,64.4505,217.14,217.04,7.58]
[1758652491593,7.46,217.14,217.04,7.58]
[1758652492092,4.1437,217.12,217.05,4.1449]
[1758652492592,7.46,217.11,217.05,4.1449]
[1758652492792,11.6039,217.11,217.04,7.58]
[1758652493186,7.46,217.11,217.04,7.58]
[1758652493792,14.09640375,217.16,217.0,3.87301401]
[1758652493793,64.4692,217.08,217.0,3.87301401]
[1758652493995,7.05,217.07,216.94,13.52882936]
[1758652494293,7.05,217.05,216.94,7.08]
[1758652494497,4.1457,217.01,216.94,7.08]
[1758652494794,64.4827,217.04,216.94,7.08]
[1758652495094,7.05,216.98,216.94,7.08]
[1758652496586,4.1456,217.02,216.91,6.44882936]
[1758652496792,4.1456,217.02,216.92,7.08]
[1758652497094,7.05,217.03,216.92,7.08]
[1758652497485,7.05,217.03,216.94,4.1469]
[1758652497786,7.05,217.03,216.95,7.08]
[1758652498596,4.1456,217.02,216.95,7.08]
[1758652499697,7.05,217.03,216.95,7.08]
[1758652500289,4.1458,217.01,216.95,7.08]
[1758652501897,11.1961,216.99,216.95,7.08]
[1758652502496,11.1961,216.99,216.92,3.87301401]
[1758652502895,4.1464,216.98,216.91,17.67642936]
[1758652503093,4.1464,216.98,216.91,7.08]
[1758652505296,64.4988,216.98,216.87,3.87301401]
[1758652505505,7.05,216.95,216.84,3.87301401]
[1758652505796,4.147,216.94,216.85,7.08]
[1758652506001,1.15274519,216.93,216.85,7.08]
[1758652506199,1.15276105,216.92,216.85,7.08]
[1758652506501,7.05,216.95,216.87,7.08]
[1758652506903,7.05,216.95,216.87,11.2282]
[1758652507399,11.1961,216.99,216.88,7.08]
[1758652507706,1.15257675,216.98,216.88,7.08]
[1758652507902,1.15257675,216.97,216.88,7.08]
[1758652508104,11.1961,216.99,216.88,7.08]
[1758652508303,1.15257606,216.98,216.88,7.08]
[1758652508503,11.1961,216.99,216.88,10.95301401]
[1758652508801,1.15251319,216.98,216.9,4.1477]
[1758652509106,7.05,216.96,216.88,7.08]
[1758652509500,1.15258454,216.95,216.88,7.08]
[1758652509699,7.05,216.96,216.88,7.08]
[1758652509901,1.15263321,216.95,216.88,7.08]
[1758652510100,7.05,216.96,216.88,11.228]
[1758652510404,7.05,216.97,216.88,7.08]
[1758652510600,1.15259316,216.96,216.88,11.228]
[1758652510801,7.05,216.97,216.88,11.228]
[1758652511002,1.15259316,216.96,216.88,11.228]
[1758652511198,7.05,216.97,216.88,11.228]
[1758652511401,1.15259334,216.96,216.88,11.228]
[1758652511609,7.05,216.97,216.88,11.228]
[1758652511908,1.15259334,216.96,216.88,11.228]
[1758652512109,7.05,216.97,216.88,11.228]
[1758652512309,1.15259334,216.96,216.88,11.228]
[1758652512506,11.1966,216.97,216.88,11.228]
[1758652512708,1.15262478,216.96,216.88,11.228]
[1758652512906,1.15262478,216.96,216.89,4.1478]
[1758652514408,11.4769,216.95,216.88,7.08]
[1758652514602,7.33,216.95,216.88,7.08]
[1758652515300,7.33,216.95,216.87,1.65077661]
[1758652515301,7.33,216.92,216.87,1.65077661]
[1758652515703,7.33,216.96,216.87,1.65077661]
[1758652515900,7.33,216.94,216.87,1.65077661]
[1758652516100,4.1477,216.91,216.84,12.65379062]
[1758652516305,11.4777,216.91,216.84,7.13]
[1758652517207,4.1479,216.9,216.84,7.13]
[1758652519310,7.33,216.91,216.84,7.13]
[1758652520016,7.33,216.9,216.81,12.65379062]
[1758652520211,7.33,216.9,216.81,8.78077661]
[1758652520410,4.1483,216.88,216.81,8.78077661]
[1758652520608,7.33,216.9,216.81,8.78077661]
[1758652521715,11.4792,216.83,216.77,3.87301401]
[1758652521910,7.33,216.83,216.76,7.13]
[1758652522716,7.33,216.87,216.79,1.65077661]
[1758652522916,7.33,216.87,216.8,7.13]
[1758652524713,7.33,216.87,216.76,1.65077661]
[1758652524920,11.4784,216.87,216.77,7.61]
[1758652525824,11.4784,216.87,216.78,4.1499]
[1758652526710,11.4784,216.87,216.79,7.61]
[1758652527815,4.1487,216.86,216.79,7.61]
[1758652528712,7.09,216.85,216.79,7.61]
[1758652529116,7.09,216.85,216.78,4.1499]
[1758652530115,7.09,216.85,216.78,11.7599]
[1758652533610,7.09,216.85,216.78,7.61]
[1758652534319,7.09,216.85,216.78,11.7601]
[1758652534819,11.238,216.89,216.81,7.61]
[1758652535920,11.238,216.89,216.81,11.7593]
[1758652536222,7.09,216.89,216.81,7.61]
[1758652537822,7.09,216.89,216.83,4.1491]
[1758652538021,7.09,216.93,216.84,1.65077661]
[1758652538220,1.15289888,216.92,216.85,7.61]
[1758652538420,7.09,216.93,216.85,7.61]
[1758652538719,1.15289865,216.92,216.85,7.61]
[1758652538917,7.09,216.93,216.85,7.61]
[1758652539117,1.15289875,216.92,216.85,7.61]
[1758652539315,7.09,216.93,216.83,1.65077661]
[1758652539522,1.15289902,216.92,216.83,9.26077661]
[1758652539825,7.09,216.93,216.85,1.65077661]
[1758652540028,7.09,216.93,216.85,9.26077661]
[1758652540522,11.2373,216.93,216.86,4.1484]
[1758652540724,11.2373,216.93,216.85,9.26077661]
[1758652542428,7.09,216.93,216.87,4.1483]
[1758652542926,7.09,216.93,216.85,9.26077661]
[1758652543122,11.2373,216.93,216.85,13.40947661]
[1758652543322,7.09,216.93,216.85,9.26077661]
[1758652543628,7.09,216.91,216.83,1.65077661]
[1758652543828,7.09,216.88,216.8,3.87301401]
[1758652544029,7.09,216.88,216.78,11.48301401]
[1758652544223,7.09,216.88,216.78,13.13379062]
[1758652544428,4.1487,216.86,216.78,17.28369062]
[1758652544929,7.09,216.88,216.78,17.28369062]